bitfinex/quotes_BTCUSD_20220105
["timestamp","ask_amount","ask_price","bid_price","bid_amount"]
[1641396610244,0.1795,46727.0,46726.0,1.06316812]
[1641396610443,0.1825,46727.0,46726.0,1.06316812]
[1641396610643,0.0825,46727.0,46726.0,1.06316812]
[1641396611593,0.0795,46727.0,46726.0,1.06316812]
[1641396611792,0.0795,46727.0,46726.0,1.05816812]
[1641396611990,0.07944,46727.0,46726.0,1.05816812]
[1641396612388,0.08344,46727.0,46726.0,1.05816812]
[1641396613190,0.08338,46727.0,46726.0,1.05816812]
[1641396613790,0.07938,46727.0,46726.0,1.05816812]
[1641396614193,0.07938,46727.0,46726.0,1.05316812]
[1641396614393,0.41705534,46727.0,46726.0,1.05316812]
[1641396614642,0.52496292,46727.0,46726.0,0.62485412]
[1641396614841,0.88011392,46727.0,46726.0,0.62485412]
[1641396615042,1.89053052,46727.0,46726.0,0.19653212]
[1641396615446,2.54053052,46727.0,46726.0,3.212e-05]
[1641396615644,0.15278545,46713.0,46712.0,0.10708]
[1641396615845,0.4684641,46713.0,46712.0,0.10702]
[1641396616043,0.1,46713.0,46712.0,0.10702]
[1641396616246,0.1429,46713.0,46711.0,0.002]
[1641396616448,1.43636411,46712.0,46711.0,0.002]
[1641396616646,1.90625563,46712.0,46711.0,0.002]
[1641396617045,0.49926411,46712.0,46711.0,0.00194]
[1641396617245,1.08517648,46712.0,46711.0,0.00194]
[1641396617445,0.5,46711.0,46710.0,2e-05]
[1641396617646,0.902887,46711.0,46710.0,2e-05]
[1641396617847,0.952887,46711.0,46710.0,2e-05]
[1641396618047,0.902887,46711.0,46710.0,2e-05]
[1641396618286,0.355151,46710.0,46709.0,0.44809504]
[1641396618482,0.0429,46710.0,46709.0,0.44809504]
[1641396618681,0.1429,46710.0,46709.0,0.44809504]
[1641396618882,0.1429,46710.0,46708.0,0.05355]
[1641396619781,0.0429,46710.0,46708.0,0.05355]
[1641396620180,0.04284,46710.0,46708.0,0.05355]
[1641396620381,0.05584,46710.0,46708.0,0.05355]
[1641396621583,0.04284,46710.0,46708.0,0.05355]
[1641396622435,0.05484,46710.0,46708.0,0.05355]
[1641396622637,0.29997881,46709.0,46707.0,0.107092]
[1641396622836,0.09773671,46708.0,46705.0,0.59619898]
[1641396623235,0.14773671,46708.0,46705.0,0.59619898]
[1641396623638,0.57008604,46707.0,46703.0,0.053557]
[1641396623837,0.57008604,46707.0,46701.0,0.002]
[1641396623838,0.29364623,46704.0,46701.0,0.002]
[1641396624039,0.0429,46703.0,46701.0,0.002]
[1641396625041,0.06146158,46702.0,46701.0,0.002]
[1641396625340,0.05080758,46702.0,46701.0,0.002]
[1641396626387,0.05780758,46702.0,46701.0,0.002]
[1641396627193,0.05780758,46702.0,46701.0,0.29764676]
[1641396627592,0.05074758,46702.0,46701.0,0.29764676]
[1641396627790,0.05074758,46702.0,46701.0,1.23186952]
[1641396628289,0.05374758,46702.0,46701.0,0.64579344]
[1641396628489,0.05374758,46702.0,46701.0,0.40014668]
[1641396628688,0.05368758,46702.0,46701.0,0.40014668]
[1641396629546,0.05068758,46702.0,46701.0,0.40014668]
[1641396629949,0.04685379,46702.0,46701.0,0.40014668]
[1641396630146,0.05062758,46702.0,46701.0,0.40014668]
[1641396630448,0.05362758,46702.0,46701.0,0.40014668]
[1641396631347,0.04967379,46702.0,46701.0,0.40014668]
[1641396631546,0.04667379,46702.0,46701.0,0.40014668]
[1641396631746,0.05056758,46702.0,46701.0,0.40014668]
[1641396632147,0.05056758,46702.0,46701.0,0.38028699]
[1641396632352,0.05450758,46702.0,46701.0,0.38028699]
[1641396632749,0.01166758,46702.0,46701.0,0.48028699]
[1641396632957,0.01166758,46702.0,46701.0,1.11000653]
[1641396633149,0.84960263,46711.0,46707.0,0.5]
[1641396633389,0.84960263,46711.0,46709.0,0.053532]
[1641396633789,1.19392245,46717.0,46709.0,0.053532]
[1641396633990,0.84960263,46717.0,46712.0,0.35856312]
[1641396634291,0.84960263,46717.0,46712.0,0.46209612]
[1641396634592,0.85260263,46717.0,46712.0,0.46209612]
[1641396635189,0.85260263,46717.0,46713.0,0.24777157]
[1641396635389,0.85260263,46717.0,46712.0,0.51562912]
[1641396635390,0.003,46717.0,46712.0,0.51562912]
[1641396635592,0.84960263,46721.0,46712.0,0.51562912]
[1641396635789,0.84960263,46721.0,46712.0,0.46209612]
[1641396635989,0.84960263,46721.0,46716.0,0.053533]
[1641396636389,0.95060263,46721.0,46716.0,0.053533]
[1641396636589,0.95060263,46721.0,46718.0,0.053533]
[1641396636788,0.355151,46720.0,46718.0,0.053533]
[1641396637036,0.455151,46720.0,46718.0,0.103533]
[1641396637236,0.455151,46720.0,46718.0,0.100533]
[1641396637934,0.1,46720.0,46718.0,0.100533]
[1641396638138,0.096327,46724.0,46720.0,0.053527]
[1641396638336,0.096327,46724.0,46720.0,0.107054]
[1641396638536,0.0428,46724.0,46721.0,0.05]
[1641396638736,0.0428,46724.0,46722.0,0.24557546]
[1641396639036,0.02621384,46727.0,46724.0,0.41646793]
[1641396639236,0.02615384,46727.0,46725.0,0.25082067]
[1641396639436,0.02615384,46727.0,46724.0,0.57349929]
[1641396640235,0.02615384,46727.0,46724.0,0.103516]
[1641396640440,0.03309384,46727.0,46724.0,0.103516]
[1641396641693,0.02609384,46727.0,46724.0,0.103516]
[1641396642494,0.03209384,46727.0,46724.0,0.103516]
[1641396642895,0.03209384,46727.0,46725.0,0.00012032]
[1641396643696,0.02609384,46727.0,46725.0,0.00012032]
[1641396644541,0.03309384,46727.0,46725.0,0.00012032]
[1641396645745,0.02609384,46727.0,46725.0,0.00012032]
[1641396646342,0.03309384,46727.0,46725.0,0.00012032]
[1641396647543,0.02609384,46727.0,46725.0,0.00012032]
[1641396648389,0.03409384,46727.0,46725.0,0.00012032]
[1641396648585,0.355151,46726.0,46725.0,0.00012032]
[1641396648986,0.455151,46726.0,46725.0,0.00012032]
[1641396649587,0.455151,46726.0,46725.0,6.032e-05]
[1641396650388,0.462151,46726.0,46725.0,6.032e-05]
[1641396650790,0.462151,46726.0,46725.0,3.2e-07]
[1641396651789,0.455151,46726.0,46725.0,3.2e-07]
[1641396652035,0.508678,46726.0,46724.0,0.06161934]
[1641396652435,0.515678,46726.0,46724.0,0.06161934]
[1641396653638,0.508678,46726.0,46725.0,0.00010979]
[1641396654436,0.160527,46726.0,46725.0,4.979e-05]
[1641396654635,0.060527,46726.0,46725.0,4.979e-05]
[1641396655237,0.007,46726.0,46725.0,0.65020591]
[1641396655791,0.02609384,46727.0,46725.0,0.70371791]
[1641396655987,0.02609384,46727.0,46726.0,0.29993528]
[1641396656189,0.02603384,46727.0,46726.0,0.29993528]
[1641396656386,0.05703384,46727.0,46726.0,0.29993528]
[1641396656786,0.05703384,46727.0,46726.0,0.05]
[1641396656985,0.05703384,46727.0,46725.0,0.05856179]
[1641396657386,0.05697384,46727.0,46725.0,0.05856179]
[1641396657586,0.02597384,46727.0,46725.0,0.05356179]
[1641396658387,0.03597384,46727.0,46725.0,0.05756179]
[1641396658587,0.03591384,46727.0,46725.0,0.05756179]
[1641396659187,0.51162742,46727.0,46725.0,0.05756179]
[1641396659638,0.60162742,46727.0,46725.0,0.05356179]
[1641396659839,0.355151,46726.0,46725.0,0.05356179]
[1641396660038,0.82365841,46726.0,46725.0,0.05356179]
[1641396660437,0.83465841,46726.0,46725.0,0.05350179]
[1641396660642,0.93293492,46726.0,46725.0,4.979e-05]
[1641396660842,1.46953492,46726.0,46725.0,4.979e-05]
[1641396661038,1.32,46725.0,46724.0,0.00810334]
[1641396661241,2.122887,46725.0,46724.0,0.00810334]
[1641396661451,2.122887,46725.0,46707.0,1.065]
[1641396661452,2.22953146,46725.0,46707.0,1.065]
[1641396661641,0.00127283,46714.0,46707.0,1.065]
[1641396661843,0.0429,46713.0,46707.0,0.5]
[1641396662241,0.34264086,46712.0,46707.0,0.5]
[1641396662441,0.0429,46711.0,46707.0,0.5]
[1641396662642,0.0429,46711.0,46707.0,0.553549]
[1641396662643,0.15110708,46710.0,46707.0,0.553549]
[1641396662841,0.32083824,46709.0,46707.0,0.553549]
[1641396663042,0.42621475,46709.0,46707.0,0.553549]
[1641396663292,0.14827651,46709.0,46707.0,0.553549]
[1641396664092,0.14827651,46709.0,46708.0,0.00011398]
[1641396664291,0.04827651,46709.0,46708.0,0.00011398]
[1641396664491,0.05527651,46709.0,46708.0,0.00011398]
[1641396665190,0.05527651,46709.0,46707.0,0.64919068]
[1641396665795,0.04827651,46709.0,46707.0,0.64919068]
[1641396666092,0.04827651,46709.0,46707.0,0.64419068]
[1641396666595,0.05527651,46709.0,46707.0,0.65066974]
[1641396667636,0.04827651,46709.0,46707.0,0.65066974]
[1641396667835,0.04827651,46709.0,46707.0,0.70066974]
[1641396668438,0.05527651,46709.0,46707.0,0.70066974]
[1641396668837,0.05527651,46709.0,46707.0,0.65066974]
[1641396669242,0.0499,46709.0,46707.0,0.65066974]
[1641396669639,0.0429,46709.0,46707.0,0.65066974]
[1641396669842,0.94918412,46713.0,46707.0,0.70420558]
[1641396670038,0.94918412,46713.0,46710.0,0.053531]
[1641396670240,0.1,46713.0,46711.0,0.053531]
[1641396670639,0.94918412,46716.0,46711.0,0.053531]
[1641396670886,0.84918412,46716.0,46711.0,0.053531]
[1641396671089,0.096432,46717.0,46711.0,0.053531]
[1641396671289,0.096432,46717.0,46711.0,0.103531]
[1641396671687,0.84918412,46720.0,46712.0,0.053531]
[1641396671896,0.84918412,46721.0,46712.0,0.05]
[1641396672089,0.053531,46718.0,46715.0,0.053527]
[1641396672289,0.355151,46717.0,46715.0,0.053527]
[1641396672489,0.223388,46716.0,46715.0,0.053527]
[1641396672990,0.223388,46716.0,46715.0,0.107054]
[1641396673189,0.1262023,46717.0,46715.0,0.106994]
[1641396673391,0.355151,46716.0,46715.0,0.106994]
[1641396673792,0.455151,46716.0,46715.0,0.106994]
[1641396674193,0.498051,46716.0,46715.0,0.106994]
[1641396674542,0.505051,46716.0,46715.0,0.101994]
[1641396674742,0.505051,46716.0,46715.0,0.10209136]
[1641396675941,0.498051,46716.0,46715.0,0.10209136]
[1641396676539,0.507051,46716.0,46715.0,0.10209136]
[1641396677539,0.407051,46716.0,46715.0,0.10209136]
[1641396677741,0.398051,46716.0,46715.0,0.10209136]
[1641396678391,0.409051,46716.0,46715.0,0.10209136]
[1641396678591,0.0539,46716.0,46715.0,0.15857206]
[1641396679895,0.0429,46716.0,46715.0,0.15857206]
[1641396680089,0.04284,46716.0,46715.0,0.15857206]
[1641396680491,0.04984,46716.0,46715.0,0.15857206]
[1641396680891,0.04984,46716.0,46715.0,0.10857206]
[1641396681293,0.04978,46716.0,46715.0,0.10857206]
[1641396681693,0.04278,46716.0,46715.0,0.10857206]
[1641396682541,0.05272,46716.0,46715.0,0.10857206]
[1641396683740,0.04266,46716.0,46715.0,0.10857206]
[1641396684538,0.04866,46716.0,46715.0,0.10857206]
[1641396684940,0.0486,46716.0,46715.0,0.10857206]
[1641396685804,0.0426,46716.0,46715.0,0.10857206]
[1641396686003,0.0426,46716.0,46715.0,0.15857206]
[1641396686302,0.04254,46716.0,46715.0,0.15857206]
[1641396686504,0.04854,46716.0,46715.0,0.15857206]
[1641396687502,0.04848,46716.0,46715.0,0.15857206]
[1641396687705,0.04248,46716.0,46715.0,0.15857206]
[1641396688503,0.04648,46716.0,46715.0,0.15857206]
[1641396688703,0.04642,46716.0,46715.0,0.15857206]
[1641396688904,0.04642,46716.0,46715.0,0.10857206]
[1641396689639,0.04242,46716.0,46715.0,0.10857206]
[1641396689837,0.04242,46716.0,46715.0,0.15857206]
[1641396690038,0.04236,46716.0,46715.0,0.15857206]
[1641396690439,0.10128214,46724.0,46718.0,0.10705]
[1641396690440,0.14418214,46724.0,46718.0,0.10705]
[1641396690641,0.14418214,46724.0,46718.0,0.16057418]
[1641396690642,0.355151,46723.0,46718.0,0.16057418]
[1641396690842,0.355151,46723.0,46720.0,0.053524]
[1641396691038,0.455151,46723.0,46720.0,0.107048]
[1641396692143,0.455151,46723.0,46721.0,0.05352167]
[1641396692541,0.466151,46723.0,46721.0,0.10352167]
[1641396693040,0.111,46723.0,46721.0,0.10352167]
[1641396693488,0.011,46723.0,46721.0,0.10352167]
[1641396693888,0.02591384,46727.0,46723.0,0.053523]
[1641396694088,0.02591384,46727.0,46725.0,0.05352]
[1641396694289,0.355151,46726.0,46725.0,0.05352]
[1641396694490,0.04791384,46727.0,46725.0,0.05352]
[1641396694788,0.1,46726.0,46725.0,0.05352]
[1641396694988,0.04791384,46727.0,46725.0,0.05352]
[1641396695188,0.04791384,46727.0,46725.0,0.04830448]
[1641396695392,0.10143484,46727.0,46725.0,0.04830448]
[1641396695789,0.07943484,46727.0,46726.0,0.0064828]
[1641396695989,0.07943484,46727.0,46726.0,0.00657142]
[1641396696589,0.09343484,46727.0,46726.0,0.00657142]
[1641396697847,0.07943484,46727.0,46726.0,0.00657142]
[1641396698648,0.09243484,46727.0,46726.0,0.00657142]
[1641396699851,0.07943484,46727.0,46726.0,0.00657142]
[1641396700655,0.09343484,46727.0,46726.0,0.00657142]
[1641396700891,0.44858584,46727.0,46726.0,0.00657142]
[1641396701093,0.54358584,46727.0,46726.0,0.00657142]
[1641396701291,0.58648584,46727.0,46726.0,0.00657142]
[1641396701692,0.58648584,46727.0,46726.0,0.00651142]
[1641396701893,0.57248584,46727.0,46726.0,0.00651142]
[1641396702094,0.86204919,46727.0,46726.0,0.00651142]
[1641396702492,0.87004919,46727.0,46726.0,0.00651142]
[1641396702692,0.58048584,46727.0,46726.0,0.00651142]
[1641396702894,0.58048584,46727.0,46726.0,0.00645142]
[1641396703894,0.57248584,46727.0,46726.0,0.00645142]
[1641396704095,0.57248584,46727.0,46726.0,0.00639142]
[1641396704560,0.58453809,46727.0,46726.0,0.00639142]
[1641396705358,0.58453809,46727.0,46726.0,0.00633142]
[1641396706064,0.57153809,46727.0,46726.0,0.00633142]
[1641396706560,0.58453809,46727.0,46726.0,0.00627142]
[1641396706960,0.22938709,46727.0,46726.0,0.00627142]
[1641396707160,0.12938709,46727.0,46726.0,0.00627142]
[1641396707362,0.18527055,46731.0,46726.0,0.00627142]
[1641396707561,0.355151,46730.0,46727.0,0.107044]
[1641396707762,0.0429,46729.0,46727.0,0.053522]
[1641396707964,0.04827651,46729.0,46727.0,0.053522]
[1641396708300,0.00537651,46728.0,46727.0,0.160562]
[1641396708499,0.04821651,46728.0,46727.0,0.10704]
[1641396710501,0.06121651,46728.0,46727.0,0.10704]
[1641396711205,0.06121651,46728.0,46726.0,0.11331442]
[1641396711402,1.18600524,46727.0,46726.0,0.00627142]
[1641396711605,1.33428175,46727.0,46726.0,0.00627142]
[1641396711802,1.38428175,46727.0,46726.0,0.00627142]
[1641396712639,1.38428175,46727.0,46726.0,0.00621142]
[1641396712640,1.39328175,46727.0,46726.0,0.00621142]
[1641396713842,1.38428175,46727.0,46726.0,0.00615142]
[1641396714640,1.09902751,46727.0,46726.0,0.00615142]
[1641396714840,1.04902751,46727.0,46726.0,0.00615142]
[1641396715040,1.32434606,46727.0,46726.0,0.00609142]
[1641396715239,1.04902751,46727.0,46726.0,0.00609142]
[1641396715890,1.04002751,46727.0,46726.0,0.00609142]
[1641396716289,1.04002751,46727.0,46726.0,0.00603142]
[1641396716692,1.04902751,46727.0,46726.0,0.00603142]
[1641396717491,1.04902751,46727.0,46726.0,0.00597142]
[1641396717691,0.94902751,46727.0,46726.0,0.00597142]
[1641396717891,0.94002751,46727.0,46726.0,0.00597142]
[1641396718691,1.21990098,46727.0,46726.0,0.00597142]
[1641396718891,1.21990098,46727.0,46726.0,0.00591142]
[1641396719095,1.31990098,46727.0,46726.0,0.00591142]
[1641396719839,1.04002751,46727.0,46726.0,0.00591142]
[1641396720039,1.04002751,46727.0,46726.0,0.00585142]
[1641396720443,1.30499839,46727.0,46726.0,0.00585142]
[1641396720641,1.04902751,46727.0,46726.0,0.00585142]
[1641396721143,1.21486265,46727.0,46726.0,0.00585142]
[1641396721341,1.21486265,46727.0,46726.0,0.00579142]
[1641396721541,1.26486265,46727.0,46726.0,0.00579142]
[1641396721943,1.25586265,46727.0,46726.0,0.00579142]
[1641396722144,2.77586265,46727.0,46721.0,0.01263354]
[1641396722344,1.84784864,46722.0,46721.0,0.01263354]
[1641396722543,1.99074864,46722.0,46721.0,0.01257354]
[1641396722746,1.99074864,46722.0,46712.0,0.5946619]
[1641396722747,0.91,46721.0,46712.0,0.5946619]
[1641396722943,1.58846465,46713.0,46712.0,0.5946619]
[1641396723144,1.86260839,46713.0,46712.0,0.5946619]
[1641396723398,1.86260839,46713.0,46709.0,0.053548]
[1641396723399,2.71215394,46713.0,46709.0,0.053548]
[1641396723598,0.5366,46710.0,46709.0,0.103548]
[1641396723799,0.5795,46710.0,46709.0,0.053548]
[1641396723997,0.6795,46710.0,46709.0,0.053548]
[1641396724599,0.6885,46710.0,46709.0,0.053548]
[1641396724997,0.6885,46710.0,46709.0,0.053488]
[1641396725898,0.6795,46710.0,46709.0,0.05867075]
[1641396726300,0.6795,46710.0,46709.0,0.05861075]
[1641396726701,0.6895,46710.0,46709.0,0.05861075]
[1641396727541,0.6895,46710.0,46709.0,0.05855075]
[1641396727941,0.6795,46710.0,46709.0,0.05855075]
[1641396728343,0.6795,46710.0,46709.0,0.05864506]
[1641396728542,0.6895,46710.0,46709.0,0.05864506]
[1641396728743,0.6895,46710.0,46709.0,0.05858506]
[1641396729944,0.6795,46710.0,46709.0,0.05852506]
[1641396730547,0.6895,46710.0,46709.0,0.05852506]
[1641396731197,0.6895,46710.0,46709.0,0.05846506]
[1641396731396,0.6895,46710.0,46709.0,0.05346506]
[1641396731996,0.6795,46710.0,46709.0,0.05346506]
[1641396732496,0.6795,46710.0,46709.0,0.05340506]
[1641396732697,0.6895,46710.0,46709.0,0.05340506]
[1641396733000,0.1529,46710.0,46709.0,0.05340506]
[1641396733496,0.0529,46710.0,46709.0,0.05340506]
[1641396733898,0.0429,46710.0,46709.0,0.05340506]
[1641396734539,0.04284,46710.0,46709.0,0.05340506]
[1641396734747,0.04384,46710.0,46709.0,0.40855606]
[1641396734947,0.001,46710.0,46709.0,0.4097562]
[1641396735143,0.001,46710.0,46709.0,0.81165516]
[1641396735343,0.001,46710.0,46709.0,0.86165516]
[1641396735744,0.00094,46710.0,46709.0,0.86165516]
[1641396735943,0.01258797,46715.0,46709.0,0.86165516]
[1641396736244,0.01258797,46715.0,46712.0,0.10705658]
[1641396736544,0.01258797,46715.0,46712.0,0.34024301]
[1641396736942,0.01252797,46715.0,46712.0,0.34024301]
[1641396737945,0.01252797,46715.0,46713.0,0.05353]
[1641396738146,0.01246797,46715.0,46713.0,0.10706196]
[1641396738391,0.0429,46716.0,46713.0,0.11224576]
[1641396738591,0.001,46715.0,46714.0,0.053529]
[1641396738991,0.001,46715.0,46714.0,0.05361914]
[1641396739191,0.001,46715.0,46714.0,0.10714742]
[1641396739391,0.00094,46715.0,46714.0,0.10714742]
[1641396740496,0.0429,46716.0,46714.0,0.10714742]
[1641396740691,0.002,46715.0,46714.0,0.10714742]
[1641396741294,0.002,46715.0,46714.0,0.34321492]
[1641396741495,0.002,46715.0,46714.0,0.34595444]
[1641396741894,0.0429,46723.0,46714.0,0.34595444]
[1641396742143,0.0429,46723.0,46719.0,0.053529]
[1641396742345,0.462212,46722.0,46719.0,0.053529]
[1641396742548,0.053528,46721.0,46719.0,0.103529]
[1641396743445,0.053528,46721.0,46720.0,0.053529]
[1641396743642,0.053528,46721.0,46720.0,0.103529]
[1641396744244,0.053528,46721.0,46720.0,0.10871409]
[1641396744443,0.096428,46721.0,46720.0,0.10871409]
[1641396744644,0.106428,46721.0,46720.0,0.10871409]
[1641396745046,0.461579,46721.0,46720.0,0.10871409]
[1641396745347,0.561579,46721.0,46720.0,0.10871409]
[1641396745793,0.551579,46721.0,46720.0,0.05871409]
[1641396746595,0.561579,46721.0,46720.0,0.05871409]
[1641396746996,0.561579,46721.0,46720.0,0.10871409]
[1641396747899,0.551579,46721.0,46720.0,0.10871409]
[1641396748698,0.561579,46721.0,46720.0,0.10871409]
[1641396748896,0.561579,46721.0,46720.0,0.05871409]
[1641396749557,0.561579,46721.0,46720.0,0.05879923]
[1641396749756,0.561579,46721.0,46720.0,0.10879923]
[1641396749955,0.551579,46721.0,46720.0,0.10879923]
[1641396750758,0.561579,46721.0,46720.0,0.10879923]
[1641396752556,0.551579,46721.0,46720.0,0.10879923]
[1641396752757,0.561579,46721.0,46720.0,0.10879923]
[1641396753398,0.561579,46721.0,46720.0,0.05879923]
[1641396753598,0.561579,46721.0,46720.0,0.00527023]
[1641396753797,0.83335366,46721.0,46720.0,0.00527023]
[1641396753999,0.82335366,46721.0,46720.0,0.00527023]
[1641396754597,0.83335366,46721.0,46720.0,0.00527023]
[1641396754797,0.83335366,46721.0,46720.0,0.00521023]
[1641396755399,1.36995366,46721.0,46720.0,0.00521023]
[1641396755601,1.36995366,46721.0,46709.0,0.0125877]
[1641396755602,1.41008,46720.0,46709.0,0.0125877]
[1641396755805,0.590152,46710.0,46709.0,0.0125877]
[1641396755999,0.97255177,46710.0,46709.0,0.0125877]
[1641396756201,1.33803535,46710.0,46705.0,0.053551]
[1641396756399,0.5366,46708.0,46707.0,0.64419368]
[1641396756599,0.6795,46708.0,46707.0,0.64419368]
[1641396756801,1.034651,46708.0,46707.0,0.64419368]
[1641396757243,1.034651,46708.0,46707.0,0.59064168]
[1641396758348,1.424651,46708.0,46707.0,0.59064168]
[1641396758545,1.034651,46708.0,46707.0,0.59064168]
[1641396758743,1.043651,46708.0,46707.0,0.59064168]
[1641396759943,1.034651,46708.0,46707.0,0.59064168]
[1641396760445,1.034651,46708.0,46707.0,0.59072991]
[1641396760795,1.044651,46708.0,46707.0,0.59072991]
[1641396761894,1.034651,46708.0,46707.0,0.59553925]
[1641396762296,1.404651,46708.0,46707.0,0.59553925]
[1641396762696,1.414651,46708.0,46707.0,0.59553925]
[1641396762895,1.408661,46708.0,46707.0,0.59553925]
[1641396763095,1.408661,46708.0,46707.0,0.16701725]
[1641396763297,2.338661,46708.0,46707.0,0.16701725]
[1641396763496,2.338661,46708.0,46701.0,0.002]
[1641396763497,0.05356471,46705.0,46701.0,0.002]
[1641396763701,0.05356471,46705.0,46698.0,0.01258841]
[1641396763702,1.05328733,46701.0,46698.0,0.01258841]
[1641396763898,0.89297614,46699.0,46698.0,0.01258841]
[1641396764096,1.15325614,46699.0,46698.0,0.01258841]
[1641396764398,1.15325614,46699.0,46691.0,0.002]
[1641396764646,0.5366,46692.0,46691.0,0.00194]
[1641396764844,0.93592675,46692.0,46691.0,0.00194]
[1641396765044,1.08950575,46692.0,46691.0,0.00194]
[1641396765441,1.75358945,46692.0,46691.0,0.00194]
[1641396765642,0.23946175,46685.0,46677.0,0.22595145]
[1641396765843,1.34485945,46692.0,46677.0,0.22595145]
[1641396765844,0.5366,46683.0,46681.0,0.055577]
[1641396766043,0.0429,46682.0,46681.0,0.159153]
[1641396766245,0.5795,46682.0,46681.0,0.159153]
[1641396766645,0.6885,46682.0,46681.0,0.159153]
[1641396766845,0.6885,46682.0,46681.0,0.055576]
[1641396767044,0.6885,46682.0,46681.0,0.055516]
[1641396767445,0.6885,46682.0,46681.0,0.109093]
[1641396767946,0.6795,46682.0,46681.0,0.055516]
[1641396768145,0.6795,46682.0,46681.0,0.002]
[1641396768394,0.97360669,46682.0,46681.0,0.002]
[1641396768596,1.32875769,46682.0,46681.0,0.00681203]
[1641396768797,1.045651,46682.0,46681.0,0.00681203]
[1641396770595,1.034651,46682.0,46681.0,0.00681203]
[1641396770795,1.034651,46682.0,46681.0,0.00691392]
[1641396770796,1.044651,46682.0,46681.0,0.00691392]
[1641396772445,1.034651,46682.0,46681.0,0.00691392]
[1641396772645,1.045651,46682.0,46681.0,0.00691392]
[1641396773846,1.034651,46682.0,46681.0,0.00691392]
[1641396774747,1.045651,46682.0,46681.0,0.00691392]
[1641396775993,1.034651,46682.0,46681.0,0.00691392]
[1641396776796,1.047651,46682.0,46681.0,0.00691392]
[1641396778002,1.034651,46682.0,46681.0,0.00691392]
[1641396778801,1.046651,46682.0,46681.0,0.00691392]
[1641396780043,1.034651,46682.0,46681.0,0.00691392]
[1641396780643,1.045651,46682.0,46681.0,0.00691392]
[1641396781648,0.945651,46682.0,46681.0,0.2498121]
[1641396781851,0.0539,46682.0,46681.0,0.2498121]
[1641396782047,0.0429,46682.0,46681.0,0.8698121]
[1641396782247,0.107133,46691.0,46681.0,0.2498121]
[1641396782446,0.0429,46690.0,46681.0,0.2498121]
[1641396782646,0.0429,46690.0,46684.0,0.107129]
[1641396782845,0.0429,46690.0,46685.0,0.05]
[1641396782846,0.04827651,46690.0,46685.0,0.05]
[1641396783046,0.04827651,46690.0,46687.0,0.053564]
[1641396783295,0.053565,46688.0,46687.0,0.107129]
[1641396783496,0.096465,46688.0,46687.0,0.053564]
[1641396783697,0.0429,46688.0,46687.0,0.053564]
[1641396784697,0.0479,46688.0,46687.0,0.069564]
[1641396785998,0.0429,46688.0,46687.0,0.053564]
[1641396786397,0.0429,46688.0,46687.0,0.05837544]
[1641396786797,0.0459,46688.0,46687.0,0.13737544]
[1641396787442,0.0120521,46693.0,46689.0,0.053557]
[1641396787645,0.0120521,46693.0,46691.0,0.053555]
[1641396787844,0.60565022,46695.0,46691.0,0.053555]
[1641396787845,0.18932332,46695.0,46693.0,0.82]
[1641396788047,0.18932332,46695.0,46694.0,0.7]
[1641396788243,0.76968027,46703.0,46694.0,0.97188454]
[1641396788445,0.053549,46702.0,46698.0,0.05354762]
[1641396788644,0.053549,46702.0,46699.0,0.053548]
[1641396789651,0.355151,46701.0,46699.0,0.107096]
[1641396790146,0.455151,46701.0,46699.0,0.157096]
[1641396790350,0.355151,46701.0,46699.0,0.157096]
[1641396790547,0.455151,46701.0,46699.0,0.127096]
[1641396790799,0.472151,46701.0,46699.0,0.127096]
[1641396791602,0.017,46701.0,46700.0,0.913486]
[1641396791901,0.017,46701.0,46699.0,0.18064487]
[1641396792101,0.017,46701.0,46700.0,0.82008605]
[1641396792309,0.72678027,46702.0,46700.0,0.82008605]
[1641396792502,0.0429,46703.0,46701.0,0.05354]
[1641396792703,0.72678027,46707.0,46703.0,0.05354117]
[1641396792903,0.72678027,46707.0,46704.0,0.053542]
[1641396793104,0.1,46707.0,46704.0,0.053542]
[1641396793502,0.355151,46706.0,46704.0,0.053542]
[1641396793702,0.355151,46706.0,46705.0,0.05354179]
[1641396793903,0.455151,46706.0,46704.0,0.160625]
[1641396794102,0.455151,46706.0,46705.0,0.05]
[1641396794860,1.33386535,46706.0,46703.0,0.107083]
[1641396795051,0.223387,46704.0,46703.0,0.107083]
[1641396795251,0.55183933,46704.0,46703.0,0.107083]
[1641396795451,0.55721584,46704.0,46701.0,0.053561]
[1641396795755,0.276947,46703.0,46700.0,8.605e-05]
[1641396795951,0.0429,46702.0,46700.0,8.605e-05]
[1641396796251,0.355151,46701.0,46700.0,8.605e-05]
[1641396796450,0.40342751,46701.0,46700.0,8.605e-05]
[1641396796651,0.55697951,46701.0,46700.0,8.605e-05]
[1641396796852,0.56897951,46701.0,46700.0,8.605e-05]
[1641396798151,0.55197951,46701.0,46700.0,8.605e-05]
[1641396798400,1.15850933,46701.0,46700.0,8.605e-05]
[1641396798699,1.16413282,46701.0,46700.0,8.605e-05]
[1641396799903,1.15313282,46701.0,46700.0,8.605e-05]
[1641396800502,0.546603,46701.0,46700.0,8.605e-05]
[1641396800701,0.558603,46701.0,46700.0,8.605e-05]
[1641396802149,0.546603,46701.0,46700.0,8.605e-05]
[1641396802748,0.557603,46701.0,46700.0,8.605e-05]
[1641396803564,1.094203,46701.0,46700.0,8.605e-05]
[1641396803752,2.56957951,46701.0,46700.0,8.605e-05]
[1641396804148,2.55857951,46701.0,46700.0,8.605e-05]
[1641396804350,3.40812506,46701.0,46700.0,8.605e-05]
[1641396804749,3.41912506,46701.0,46700.0,8.605e-05]
[1641396805348,2.56957951,46701.0,46700.0,8.605e-05]
[1641396805550,2.9989376,46701.0,46700.0,8.605e-05]
[1641396806004,2.9879376,46701.0,46700.0,8.605e-05]
[1641396806603,1.5679376,46701.0,46700.0,8.605e-05]
[1641396806804,1.5789376,46701.0,46700.0,8.605e-05]
[1641396807809,1.9989376,46701.0,46700.0,8.605e-05]
[1641396808206,0.83,46700.0,46699.0,0.0048101]
[1641396808405,1.91510859,46700.0,46699.0,0.0048101]
[1641396808605,2.0204851,46700.0,46699.0,0.0048101]
[1641396808804,2.0344851,46700.0,46699.0,0.0048101]
[1641396809205,2.46384319,46700.0,46699.0,0.0048101]
[1641396810154,2.44984319,46700.0,46699.0,0.0048101]
[1641396810754,2.46084319,46700.0,46699.0,0.0048101]
[1641396810956,2.48230319,46700.0,46699.0,0.0048101]
[1641396811155,2.2000816,46700.0,46699.0,0.0048101]
[1641396811655,1.3700816,46700.0,46699.0,0.0048101]